Cogmind - Beta 15 @@@ ROGUE MODE // 2025.05.13 @ 15:27:38 Player: Ev Result: Destroyed by Y-54 Guardian with Flak Gun Performance ------------- Evolutions (3) 1500 Regions Visited (7) 1400 Robots Destroyed (27) 135 Value Destroyed (707) 707 Prototype IDs (5) 100 Alien Tech Used (0) 0 Bonus (0) 0 TOTAL SCORE: 3842 Bonus ------- None Cogmind --------- Core Integrity 0/700 Matter 445/450 Energy 250/250 System Corruption 6% Temperature Cool (0) Movement Core (150) Ox2 Location -7/Factory Parts ------- > --- POWER (1) -------- (None) > --- PROPULSION (3) --- (None) > --- UTILITY (6) ------ Medium Battery Compact Matter Pod Improved Utility Shielding > --- WEAPON (3) ------- Field Laser > --- INVENTORY (5) ---- Improved Deuterium Engine Recalibrator Field Laser Peak State ------------ > --- POWER ------------ Light Deuterium Engine > --- PROPULSION ------- Flight Unit VTOL Module Cesium-ion Thruster > --- UTILITY ---------- Small Storage Unit Weight Redist. System Transmission Jammer Utility Shielding Weapon Shielding Improved Light Armor Plating > --- WEAPON ----------- Precision Shock Rifle Light Assault Rifle Light Assault Rifle > --- INVENTORY -------- Light Ion Engine Flight Unit Improved Heat Sink Medium Battery Compact Matter Pod Improved Utility Shielding Lightning Gun Light Assault Rifle [Rating: 29] Favorites ----------- Power Light Ion Engine Engine Light Ion Engine Power Core Light Nuclear Core Propulsion VTOL Module Leg Aluminum Leg Flight Unit VTOL Module Utility Utility Shielding Device Weight Redist. System Storage Small Storage Unit Processor Visual Processing Unit Protection Utility Shielding Weapon Light Assault Rifle Energy Gun Field Laser Ballistic Gun Light Assault Rifle Special Weapon Plasma Cutter Build | -11 -10 -9 -9 -9 -8 -8 -7 ------- Run | Yrd Mat Mat Min Exi Min Mat Fac Slots Evolved 6 | . . 2 . . . 2 2 Power . | . . . . . . . . Propulsion 1 | . . 1 . . . . . Utility 4 | . . 1 . . . 2 1 Weapon 1 | . . . . . . . 1 Parts Attached 45 | 6 11 7 1 . . 5 15 Power 9 | 1 2 1 . . . 1 4 Engine 6 | 1 2 1 . . . 1 1 Core 3 | . . . . . . . 3 Reactor . | . . . . . . . . Propulsion 13 | 2 3 4 . . . 1 3 Treads . | . . . . . . . . Leg 3 | 2 . . . . . . 1 Wheel . | . . . . . . . . Hover . | . . . . . . . . Flight 10 | . 3 4 . . . 1 2 Utility 13 | 1 3 . 1 . . 3 5 Device 4 | . . . . . . 2 2 Storage 4 | 1 1 . . . . . 2 Processor 1 | . 1 . . . . . . Hackware . | . . . . . . . . Protection 4 | . 1 . 1 . . 1 1 Artifact . | . . . . . . . . Weapon 10 | 2 3 2 . . . . 3 Energy Gun 5 | 2 . . . . . . 3 Energy Cannon . | . . . . . . . . Ballistic Gun 4 | . 3 1 . . . . . Ballistic Cannon . | . . . . . . . . Launcher . | . . . . . . . . Special Weapon 1 | . . 1 . . . . . Impact Weapon . | . . . . . . . . Slashing Weapon . | . . . . . . . . Piercing Weapon . | . . . . . . . . Special Melee Weapon . | . . . . . . . . Unidentified Prototypes 1 | . . . . . . . 1 Parts Lost 24 | . 1 1 1 . . . 21 Power 5 | . 1 . . . . . 4 Propulsion 6 | . . 1 . . . . 5 Utility 7 | . . . . . . . 7 Weapon 6 | . . . 1 . . . 5 Highest Loss Streak 12 | . 1 1 1 . . . 12 To Critical Strikes . | . . . . . . . . Average Backups 5 | 3 4 5 7 7 7 7 5 Power 1 | . . 1 2 3 3 1 . Propulsion 1 | 1 1 1 2 2 2 2 . Utility 1 | . . . . . . 1 2 Weapon 1 | 1 1 2 2 2 2 2 1 Tool/Special . | . . . . . . . . Unused Backups 13 | 1 2 . 1 . . 4 5 Power 3 | . . . . . . 3 . Propulsion 3 | 1 1 . . . . 1 . Utility 3 | . . . . . . . 3 Weapon 4 | . 1 . 1 . . . 2 Tool/Special . | . . . . . . . . Average Slot Usage (%) 80 | . 91 99 100 100 100 84 63 Engine 7 | . 14 11 11 11 11 9 3 Core 1 | . . . . . . . 2 Leg 1 | . 8 . . . . . . Flight 19 | . 19 33 33 33 33 27 9 Device 4 | . . . . . . 2 9 Storage 9 | . 4 10 11 11 11 9 10 Processor 2 | . 8 11 8 . . . . Protection 14 | . 6 11 13 22 22 19 13 Energy Gun 4 | . 21 . . . . . 3 Ballistic Gun 12 | . 7 17 21 22 22 18 7 Peak Build Rating 29 | 6 8 13 14 11 11 21 29 Average Rating 14 | 4 7 11 12 11 11 15 18 On Entrance 10 | . 6 8 13 11 11 11 21 Naked Turns 18 | . . . . . . . 18 Heaviest Build 21 | 13 18 11 12 12 12 17 21 Greatest Support 20 | 20 20 12 12 12 12 19 19 Greatest Overweight (x) 4 | 1 . . . . . . 4 Average Overweight (x) . | . . . . . . . . Largest Inventory Capacity 10 | 8 10 8 8 8 8 8 8 Average Capacity 7 | 7 6 7 8 8 8 8 6 Most Carried 8 | 7 6 8 8 7 7 8 8 Average Carried 5 | 3 4 5 7 7 7 7 5 Final Capacity 8 | 8 5 8 8 8 8 8 5 Final Carried 8 | 3 5 8 7 7 7 8 3 Class Distribution -------------------- 43% | Mutant 38% | Scavenger-Sprinter 9% | Sprinter 8% | Scavenger-Mutant Dominant Class ---------------- Mutant | -10/Materials Scavenger-Sprinter | -9/Materials Scavenger-Sprinter | -9/Mines Scavenger-Sprinter | -9/Exiles Scavenger-Sprinter | -8/Mines Sprinter | -8/Materials Mutant | -7/Factory Resources | -11 -10 -9 -9 -9 -8 -8 -7 ----------- Run | Yrd Mat Mat Min Exi Min Mat Fac Matter Collected 916 | 218 185 96 53 . 3 45 316 Remotely . | . . . . . . . . Salvage Created 1040 | . 202 145 87 . 60 100 446 Parts 59 | . 21 13 8 . 1 3 13 Haulers Intercepted 2 | . . . . . . 2 . Recyclers Shooed . | . . . . . . . . Parts Field Recycled . | . . . . . . . . Retrieved Matter . | . . . . . . . . Parts Self-Destructed . | . . . . . . . . Prevented . | . . . . . . . . Kills | -11 -10 -9 -9 -9 -8 -8 -7 ------- Run | Yrd Mat Mat Min Exi Min Mat Fac Combat Hostiles Destroyed 23 | . 8 6 2 . . . 7 Guns 21 | . 8 4 2 . . . 7 Cannons 2 | . . 2 . . . . . Classes Destroyed 8 | . 3 . 1 . . 1 3 Hauler 2 | . . . . . . 2 . Recycler 1 | . . . . . . . 1 Watcher 1 | . 1 . . . . . . Swarmer 10 | . 6 4 . . . . . Grunt 10 | . 2 2 1 . . . 5 Sentry 1 | . . . 1 . . . . Hunter 1 | . . . . . . . 1 Programmer 1 | . . . . . . . 1 Best Kill Streak 5 | . 5 4 2 . . 1 4 Combat Bots Only 5 | . 5 4 2 . . . 4 Max Kills in Single Turn 2 | . 2 1 1 . . 1 1 Gunslinging 1 | . 1 . . . . . . Exploded . | . . . . . . . . Melee . | . . . . . . . . Uniques/NPCs Destroyed . | . . . . . . . . Combat | -11 -10 -9 -9 -9 -8 -8 -7 -------- Run | Yrd Mat Mat Min Exi Min Mat Fac Hostile Shots Fired 381 | . 61 45 10 . . 1 264 Missed 149 | . 27 14 5 . . . 103 Hits 232 | . 34 31 5 . . 1 161 Projectile 232 | . 34 31 5 . . 1 161 Critical Strikes 6 | . . 1 . . . . 5 Actively Blocked 1 | . . . . . . . 1 Damage Taken 2651 | . 316 273 77 . . 10 1975 Core 857 | . 48 54 50 . . . 705 Absorbed by Shields 69 | . . . . . . . 69 Redirected to Shielding 172 | . . 7 . . . . 165 Core Remaining (%) 88 | 100 80 . . . 74 100 . Volleys Fired 126 | . 25 32 6 . 1 8 54 Largest 3 | . 2 2 2 . 2 2 3 Hottest 90 | . 90 40 40 . 40 40 75 Shots Fired 207 | . 50 50 11 . 3 16 77 Gun 192 | . 50 36 10 . 3 16 77 Cannon . | . . . . . . . . Launcher . | . . . . . . . . Special 15 | . . 14 1 . . . . Kinetic 129 | . 26 36 10 . 3 16 38 Thermal 70 | . 24 14 1 . . . 31 Explosive . | . . . . . . . . Electromagnetic 8 | . . . . . . . 8 Robot Hit Streak 9 | . 4 5 4 . 4 8 9 Robot Miss Streak 6 | . 6 3 4 . . 2 3 Penetration Max . | . . . . . . . . Secondary Targets 5 | . 2 . . . . . 3 Max Gunslinging Chain 1 | . 1 . . . . . 1 Shots Hit Robots 132 | . 27 30 6 . 2 11 56 Core Hits 59 | . 14 13 5 . 1 4 22 Critical Kills 2 | . 1 . . . . . 1 Critical Parts Destroyed 1 | . . . . . . . 1 Critical Strikes 4 | . 1 . . . . . 3 Burn 1 | . . . . . . . 1 Destroy 3 | . 1 . . . . . 2 Melee Attacks . | . . . . . . . . Impact . | . . . . . . . . Slashing . | . . . . . . . . Piercing . | . . . . . . . . Sneak Attacks . | . . . . . . . . Combat Hostiles . | . . . . . . . . Follow-up Attacks . | . . . . . . . . Damage Inflicted 1324 | . 246 249 43 . 16 87 683 Guns 1246 | . 246 175 43 . 16 87 679 Cannons . | . . . . . . . . Explosions . | . . . . . . . . Melee . | . . . . . . . . Ramming 4 | . . . . . . . 4 Kinetic 671 | . 142 175 43 . 16 87 208 Thermal 584 | . 104 74 . . . . 406 Explosive . | . . . . . . . . Electromagnetic 65 | . . . . . . . 65 Impact . | . . . . . . . . Slashing . | . . . . . . . . Piercing . | . . . . . . . . Highest Corruption 6 | . . 2 2 2 2 . 6 Average Corruption 3 | . . 2 2 2 2 . 5 Corruption Purged . | . . . . . . . . Corruption Blocked . | . . . . . . . . Effects 20 | . . . 1 3 1 . 15 Message Errors 5 | . . . 1 2 . . 2 Matter Fused 1 | . . . . . . . 1 Heat Flow Errors 6 | . . . . 1 . . 5 Energy Discharges 1 | . . . . . . . 1 Parts Rejected 1 | . . . . . . . 1 Data Loss (minor) 2 | . . . . . . . 2 Misfires 3 | . . . . . 1 . 2 Weapon Failures 1 | . . . . . . . 1 Overload Shots . | . . . . . . . . Overflow Damage . | . . . . . . . . Projectiles . | . . . . . . . . Explosions . | . . . . . . . . Melee . | . . . . . . . . Knockbacks . | . . . . . . . . Impact . | . . . . . . . . Kinetic . | . . . . . . . . Secondary . | . . . . . . . . Self-Inflicted Damage 1 | . . . . . . . 1 Shots . | . . . . . . . . Rammed 3 | . . . . . . . 3 Targets Rammed 3 | . . . . . . . 3 Kicked . | . . . . . . . . Crushed . | . . . . . . . . Highest Temperature 228 | . 180 3 12 113 9 . 228 Average Temperature 57 | . 68 3 10 59 5 . 54 Received Heat Transfer 542 | . 48 60 24 . . . 410 Siege Activations . | . . . . . . . . Martial Activations . | . . . . . . . . Shielding Activations . | . . . . . . . . Robots Disrupted . | . . . . . . . . Combat Hostiles . | . . . . . . . . Robots Corrupted . | . . . . . . . . Combat Hostiles . | . . . . . . . . Parts Fried . | . . . . . . . . Impact Corruptions . | . . . . . . . . Robots Melted . | . . . . . . . . Combat Hostiles . | . . . . . . . . Parts Melted 3 | . . . . . . . 3 Heat Transferred 1420 | . 273 259 . . . . 888 Parts Sabotaged . | . . . . . . . . Parts Stolen . | . . . . . . . . Parts Stripped . | . . . . . . . . Power Chain Reactions . | . . . . . . . . Alert | -11 -10 -9 -9 -9 -8 -8 -7 ------- Run | Yrd Mat Mat Min Exi Min Mat Fac Maximum Alert Level . | . . . . . . . . Low Security (%) 100 | 100 100 100 100 . 100 100 100 Level 1 . | . . . . . . . . Level 2 . | . . . . . . . . Level 3 . | . . . . . . . . Level 4 . | . . . . . . . . Level 5 . | . . . . . . . . High Security . | . . . . . . . . Max Security . | . . . . . . . . Peak Influence 182 | . 182 170 82 . 5 17 79 Initial 72 | . . 72 62 . . 1 2 Average 40 | . 73 128 57 . . 4 19 Influence Increases 872 | . 272 188 40 . 5 42 325 Destroy 0b10 Robot/C 460 | . 160 120 40 . . . 140 Destroy 0b10 Robot/NC 25 | . 5 . . . 5 10 5 Destroy Leader 86 | . 32 20 . . . 4 30 Successful Hack 31 | . . 3 . . . 28 . Partial Spotted 75 | . 15 30 . . . . 30 Lose Combat Pursuer 195 | . 60 15 . . . . 120 Influence Decreases 871 | . 100 200 168 32 . 40 331 Entered New Map 239 | . . 100 98 32 . 4 5 Time Decay 517 | . 90 90 60 . . 36 241 Lost Part 115 | . 10 10 10 . . . 85 Squads Dispatched 5 | . . 1 . . . 1 3 Investigation 1 | . . . . . . . 1 Extermination 2 | . . . . . . . 2 Reinforcement 1 | . . 1 . . . . . Assault . | . . . . . . . . Garrison 1 | . . . . . . 1 . Intercept . | . . . . . . . . Searches Triggered . | . . . . . . . . Construction Impeded . | . . . . . . . . Haulers Reinforced . | . . . . . . . . Active Scanning Responses . | . . . . . . . . Cargo Convoy Interrupts . | . . . . . . . . Stealth | -11 -10 -9 -9 -9 -8 -8 -7 --------- Run | Yrd Mat Mat Min Exi Min Mat Fac Distress Signals 6 | . 1 3 . . . . 2 Communications Jammed . | . . . . . . . . Distress Signals . | . . . . . . . . Times Spotted 62 | . 14 16 4 . . 3 25 Peak Tracking Total 7 | . 6 7 4 . . 5 5 Tactical Retreats 9 | . 3 1 . . . . 5 Traps | -11 -10 -9 -9 -9 -8 -8 -7 ------- Run | Yrd Mat Mat Min Exi Min Mat Fac Traps Triggered 4 | . . 1 . . . . 3 Indirectly . | . . . . . . . . Trap Hack Attempts . | . . . . . . . . Triggered . | . . . . . . . . Disarmed . | . . . . . . . . Reprogrammed . | . . . . . . . . Reused . | . . . . . . . . Traps Extracted . | . . . . . . . . Installed . | . . . . . . . . Triggered . | . . . . . . . . Machines | -11 -10 -9 -9 -9 -8 -8 -7 ---------- Run | Yrd Mat Mat Min Exi Min Mat Fac Machines Disabled . | . . . . . . . . Max in Single Turn . | . . . . . . . . Machines Repaired . | . . . . . . . . Machines Dismantled . | . . . . . . . . Machines Sabotaged . | . . . . . . . . Overloaded Fab Kills . | . . . . . . . . Hacking | -11 -10 -9 -9 -9 -8 -8 -7 --------- Run | Yrd Mat Mat Min Exi Min Mat Fac Machines Accessed 16 | . 2 1 1 4 . 6 2 Terminals 8 | . . 1 1 . . 5 1 Fabricators . | . . . . . . . . Repair Stations . | . . . . . . . . Recycling Units 4 | . 2 . . . . 1 1 Scanalyzers . | . . . . . . . . Garrison Access . | . . . . . . . . Total Hacks 75 | . 7 3 2 49 . 11 3 Successful 62 | . 3 3 . 49 . 7 . Failed 13 | . 4 . 2 . . 4 3 Catastrophic 1 | . . . . . . 1 . Database Lockouts . | . . . . . . . . Manual 5 | . . 2 2 . . 1 . Terminals 16 | . . 3 2 . . 10 1 Fabricators . | . . . . . . . . Repair Stations . | . . . . . . . . Recycling Units 10 | . 7 . . . . 1 2 Scanalyzers . | . . . . . . . . Garrison Access . | . . . . . . . . Terminal Hacks 55 | . . 1 . 49 . 5 . Record 50 | . . . . 49 . 1 . Prototype ID Bank 2 | . . 1 . . . 1 . Branch Access Points 1 | . . . . . . 1 . Alert Level 1 | . . . . . . 1 . Hauler Manifests 1 | . . . . . . 1 . Fabricator Hacks . | . . . . . . . . Repair Station Hacks . | . . . . . . . . Recycling Unit Hacks 4 | . 3 . . . . 1 . Report Inventory 1 | . 1 . . . . . . Retrieve Components 3 | . 2 . . . . 1 . Scanalyzer . | . . . . . . . . Garrison Access Hacks . | . . . . . . . . Unauthorized Hacks 3 | . . 2 . . . 1 . Terminals 3 | . . 2 . . . 1 . Track 1 | . . 1 . . . . . Operators 2 | . . 1 . . . 1 . Fabricators . | . . . . . . . . Repair Stations . | . . . . . . . . Recycling Units . | . . . . . . . . Scanalyzers . | . . . . . . . . Garrison Access . | . . . . . . . . Data Cores Recovered . | . . . . . . . . Used . | . . . . . . . . Hacking Detections 9 | . 1 1 1 . . 4 2 Full Trace Events . | . . . . . . . . Feedback Events . | . . . . . . . . Feedback Blocked . | . . . . . . . . Robot Schematics Acquired . | . . . . . . . . Robots Built . | . . . . . . . . Authchips . | . . . . . . . . Time . | . . . . . . . . Total Robot Build Rating . | . . . . . . . . Part Schematics Acquired . | . . . . . . . . Parts Built . | . . . . . . . . Authchips . | . . . . . . . . Time . | . . . . . . . . Total Part Build Rating . | . . . . . . . . Parts Repaired . | . . . . . . . . Time . | . . . . . . . . Parts Recycled . | . . . . . . . . Recycled Matter . | . . . . . . . . Retrieved Matter . | . . . . . . . . Retrieved Components 7 | . 6 . . . . 1 . Parts Scanalyzed . | . . . . . . . . Part Schematics Acquired . | . . . . . . . . Parts Damaged . | . . . . . . . . Bothacking | -11 -10 -9 -9 -9 -8 -8 -7 ------------ Run | Yrd Mat Mat Min Exi Min Mat Fac Used RIF Installer . | . . . . . . . . Robots Hacked . | . . . . . . . . Non-combat . | . . . . . . . . Combat . | . . . . . . . . Robot Hacks Applied . | . . . . . . . . Relay Couplers Released . | . . . . . . . . Fabnet Peak Effective % . | . . . . . . . . Robots Rewired . | . . . . . . . . Allies Hacked . | . . . . . . . . Hacks Repelled . | . . . . . . . . Allies | -11 -10 -9 -9 -9 -8 -8 -7 -------- Run | Yrd Mat Mat Min Exi Min Mat Fac Total Allies . | . . . . . . . . Largest Group . | . . . . . . . . Highest-Rated Group . | . . . . . . . . Highest-Rated Ally . | . . . . . . . . Total Orders . | . . . . . . . . Ally Attacks . | . . . . . . . . Total Damage . | . . . . . . . . Kills . | . . . . . . . . Allies Corrupted . | . . . . . . . . Allies Melted . | . . . . . . . . Intel | -11 -10 -9 -9 -9 -8 -8 -7 ------- Run | Yrd Mat Mat Min Exi Min Mat Fac Active Infowar (turns) 842 | . 146 199 99 . . 2 396 Optics 444 | . 146 199 99 . . . . Jamming 359 | . . . . . . . 359 ECM 39 | . . . . . . 2 37 Robot Analysis Total . | . . . . . . . . Derelict Logs Recovered . | . . . . . . . . Drone Launches . | . . . . . . . . Drone Recoveries . | . . . . . . . . Exploration | -11 -10 -9 -9 -9 -8 -8 -7 ------------- Run | Yrd Mat Mat Min Exi Min Mat Fac Turns Passed 1942 | 67 225 199 129 255 35 116 916 Spaces Moved 2601 | 52 232 241 185 812 106 225 748 Core 222 | 18 . . . . . . 204 Treads . | . . . . . . . . Legs 65 | 34 30 . . . . . 1 Wheels . | . . . . . . . . Hover . | . . . . . . . . Flight 2314 | . 202 241 185 812 106 225 543 Fastest Speed 29 | 50 37 30 30 30 30 29 29 Average Speed 46 | 98 47 31 30 30 30 29 76 Slowest Speed 250 | 120 120 34 30 30 30 30 250 Overloaded Moves . | . . . . . . . . Propulsion Burnouts . | . . . . . . . . Robots Hopped 4 | . 1 1 . . 1 . 1 Potential Cave-ins . | . . . . . . . . Cave-ins Triggered . | . . . . . . . . Exploration Rate (%) 32 | 3 39 24 19 92 33 29 21 Regions Visited 7 Branch Regions 3 Pre-discovered Areas 1 | . . . . 1 . . . Known Exits Taken . | . . . . . . . . Unknown Exits Taken 7 | 1 1 1 1 1 1 1 . Scrap Searched 1 | . . . 1 . . . . Spaces Dug . | . . . . . . . . Terrain Destroyed . | . . . . . . . . Melee . | . . . . . . . . Projectile . | . . . . . . . . AOE . | . . . . . . . . Terrain Rammed . | . . . . . . . . Walls Destroyed . | . . . . . . . . Machines Disabled . | . . . . . . . . Actions | -11 -10 -9 -9 -9 -8 -8 -7 --------- Run | Yrd Mat Mat Min Exi Min Mat Fac Total 3128 | 67 300 304 247 822 105 262 1021 Wait 248 | . 13 11 51 11 . 13 149 Move 2586 | 51 229 238 184 811 103 224 746 Hop 4 | . 1 1 . . 1 . 1 Pick Up 55 | 9 11 10 2 . . 7 16 Fast Attach 5 | 1 2 . . . . 1 1 Attach 28 | 5 2 3 1 . . 1 16 Detach 1 | . . . . . . . 1 Swap 22 | . 8 5 2 . . 3 4 Drop 26 | 1 9 4 1 . . 5 6 Fire 126 | . 25 32 6 . 1 8 54 Melee . | . . . . . . . . Ram 3 | . . . . . . . 3 Kick . | . . . . . . . . Crush . | . . . . . . . . Escape Stasis 24 | . . . . . . . 24 Rewire . | . . . . . . . . Trap . | . . . . . . . . Miscellaneous . | . . . . . . . . Route ------- -11/Scrapyard -10/Materials -9/Materials -9/Mines -9/Exiles (discovered 2 exits: [*Min x2]) -8/Mines -8/Materials (discovered 3 exits: *Fac / Sto x2) -7/Factory (discovered 1 exit: [*Fac]) History --------- Turn | Location | Event 6 | -11/Scrapyard | Discovered new exit (range 14) 68 | -11/Scrapyard | Entered Materials 210 | -10/Materials | Discovered new exit (range 3) 293 | -10/Materials | Entered another Materials area 293 | -9/Materials | Evolved 2 slots: Propulsion x1, Utility x1 450 | -9/Materials | Discovered new exit (range 18) 492 | -9/Materials | Entered Mines 503 | -9/Mines | Joined a pair of Derelicts in attacking an 0b10 outpost 549 | -9/Mines | Met a Derelict bent on vengeance 620 | -9/Mines | Deemed a non-threat by the Exiles lab entrance 620 | -9/Mines | Discovered new exit (range 5) 621 | -9/Mines | Entered Exiles 628 | -9/Exiles | Discovered new exit (range 15) 633 | -9/Exiles | Met 8R-AWN 639 | -9/Exiles | Met EX-HEX 651 | -9/Exiles | Met EX-DEC 675 | -9/Exiles | Discovered new exit (range 14) 688 | -9/Exiles | Build established: Scavenger-Sprinter 695 | -9/Exiles | Learned location of Zion (-6) 702 | -9/Exiles | Met EX-BIN 763 | -9/Exiles | Visited The Gauntlet 876 | -9/Exiles | Entered Mines 901 | -8/Mines | Discovered new exit (range 9) 911 | -8/Mines | Entered Materials 911 | -8/Materials | Evolved 2 slots: Utility x2 939 | -8/Materials | Identified exit to Storage 1015 | -8/Materials | Discovered new exit (range 16) 1021 | -8/Materials | Garrison activated, responded to threat 1027 | -8/Materials | Entered Factory 1027 | -7/Factory | Evolved 2 slots: Utility x1, Weapon x1 1361 | -7/Factory | Lost 3 parts (2n1w) 1497 | -7/Factory | Core integrity fell below 50% 1544 | -7/Factory | Lost 12 parts (2p2n6u2w) 1622 | -7/Factory | Build established: Mutant 1841 | -7/Factory | Core integrity fell below 20% 1872 | -7/Factory | Discovered new exit (range 5) 1943 | -7/Factory | Destroyed by Y-54 Guardian with Flak Gun Last Messages --------------- 01822_ ALERT: Alarm triggered, dispatching investigation squad. 01829_ System corrupted: Energy discharge (-73). 01830_ System corrupted: Field Laser failed to cycle. 01838_ Reaction Control System destroyed. 01844_ G-47 Trooper overheating. 01846_ U-05 Engineer lays Concrete. 01847_ G-47 Trooper heat short circuits Particle Gun. 01847_ U-05 Engineer lays Concrete. 01848_ Field Laser destroyed. 01850_ U-05 Engineer lays Concrete. 01855_ Aluminum Leg melted. 01855_ G-47 Trooper destroyed. 01856_ U-05 Engineer lays Concrete. 01872_ EXIT=FOUND 01873_ System corrupted: Heat flow error (+250). 01894_ System corrupted: Heat flow error (+160). 01910_ ALERT: Potential suspicious activity detected, Programmers report to Factory Zone 1T. 01924_ System corrupted: Component data lost. 01933_ Lgt. Nuclear Core destroyed. Map ----- +----------------------------------------------------+ | ??????????????????????? #???????????# #?? | | ??????????????????????# #???????????+ "Y" #?? | | ??????????????????????# #???????????# """ ### | | ??????????????????????# #???????????# + | | ??????????????????????# #???????????#####+## | | ??????????????????????+ +???????????????#^^^ | | ??????????????????????# #???????????????# | | ??????????????????????# #???????????????# | | ????????????#########?# #?????????####### | | ????????????# ?# #?????????+ | | ????????????# [[[ # #?????????# | | ????????????# [[[ # #?????????# """ | | ????????????# [[[ t +?????????# """ | | ????????????# #Y #?????????# """ | | ????????????# ! # #?????????# ## | | ????????????# ?# #?????????# """ # | | ???????????# """T"""?# #???#+#???# """ # | | ???????????#########??# #???# #???# """ + | | ??????????????????????# #???# #???# = # | | ??????????????????????# ##### ##### % # | | ??????????????????????# % #####+#### | | ?????????????????????## ##+######## # | | ?????????????????????# # # # """"""" | | ?????????????????????#T # "" # # | | ?????????????????????## # """ """ # # """"""" | | ??????????????????????# @ # """ S" # # | | ??????????????????????# + """ # ########## | | ??????????????????????# < # "" # ????????? | | ??????????????????????# # "" # ????????? | | ??????????????????????# # # ????????? | | ??????????????????????################# ????????? | | ??????????????????????????????????????? ????????? | | ??????????????????????????????????????? ????????? | | ??????????????????????????????????????? ????????? | | ??????????????????????????????????????? ????????? | | ??????????????????????????????????????? ????????? | | ?????????????????????????????????????????????????? | | ?????????????????????????????????????????????????? | | ?????????????????????????????????????????????????? | | ?????????????????????????????????????????????????? | | ?????????????????????????????????????????????????? | | ?????????????????????????????????????????????????? | | ?????????????????????????????????????????????????? | | ?????????????????????????????????????????????????? | | ?????????????????????????????????????????????????? | | ?????????????????????????????????????????????????? | | ?????????????????????????????????????????????????? | | ?????????????????????????????????????????????????? | | ?????????????????????????????????????????????????? | | ?????????????????????????????????????????????????? | +----------------------------------------------------+ Best States ------------- Heat Dissipation 34 Energy Generation 14 Energy Capacity 310 Matter Stores 450 Matter Capacity 450 Sight Range 18 Terrain Scan Density 10 ECM Strength 1 Jamming Range 12 Additional Mass Support 6 Armor Coverage 150 Utility Shielding 66 Weapon Shielding 33 Evasion (%) 64 Item Schematics ----------------- None Robot Schematics ------------------ None Fabricated ------------ Nothing Repaired ---------- Nothing Alien Tech Used ----------------- None Achievements -------------- None Challenges ------------ None Game ------ Seed VoltaicDirectedDirector Manual? 0 Play Time 00:55:31 Cumulative 44.7 hours Start 2025.05.13 @ 14:29:03 End 2025.05.13 @ 15:27:38 Sessions 1 Manual Loads 0 Difficulty Rogue Special Mode None Game No. 94 Rogue 94 Adventurer 0 Explorer 0 Win Type - Total 0 Types 0/0/0/0/0/0/0/0/0/0 Lore% 14 Gallery% 25 Achievement% 22 Wizard Run 0 Options --------- Layout 0 ASCII 0 Keyboard 0 Movement Mouse Keybinds 0 Fullscreen 1 Font 24/Smallcaps Map View 76x50 Zoom Use 0% Tactical HUD 1 Map Filters NONE Filters NONE Steam 1 RUN: 17e7b1fb-395f-41d4-95dc-4380b9537f04